bitfinex-derivatives/quotes_ETHF0:USTF0_20230105
["timestamp","ask_amount","ask_price","bid_price","bid_amount"]
[1672949987245,2.99102133,1252.9,1252.8,9.51229779]
[1672949987465,2.99102133,1252.9,1252.8,9.51226103]
[1672949987979,2.9881703,1252.9,1252.8,9.51226103]
[1672949988190,2.9881703,1252.9,1252.8,12.48532082]
[1672949988932,2.9881703,1252.9,1252.8,9.51226103]
[1672949999129,2.9881703,1252.9,1252.8,8.09750913]
[1672949999447,2.9881703,1252.9,1252.8,9.88904233]
[1672950000493,2.9881703,1252.9,1252.8,7.38904233]
[1672950000922,2.9881703,1252.9,1252.8,4.9993332]
[1672950003657,2.9881703,1252.9,1252.8,7.38904233]
[1672950003868,2.9881703,1252.9,1252.8,7.4993332]
[1672950004069,2.9881703,1252.9,1252.8,4.9993332]
[1672950004281,8.48115804,1252.9,1252.8,4.40254973]
[1672950005436,5.4881703,1252.9,1252.8,4.9993332]
[1672950005750,2.9881703,1252.9,1252.8,4.9993332]
[1672950006589,2.9881703,1252.9,1252.8,1.7915332]
[1672950006797,2.9881703,1252.9,1252.8,4.9993332]
[1672950007856,2.9881703,1252.9,1252.8,1.7915332]
[1672950008065,2.9881703,1252.9,1252.8,4.9993332]
[1672950008694,2.9881703,1252.9,1252.8,1.7915332]
[1672950009013,2.9881703,1252.9,1252.8,4.9993332]
[1672950009014,5.98115804,1252.9,1252.8,4.9993332]
[1672950009224,5.98115804,1252.9,1252.8,6.19437745]
[1672950009749,5.98115804,1252.9,1252.8,4.9993332]
[1672950012908,5.98115804,1252.9,1252.8,1.7915332]
[1672950013221,5.98115804,1252.9,1252.8,4.9993332]
[1672950013850,8.48115804,1252.9,1252.8,4.9993332]
[1672950014050,8.48115804,1252.9,1252.8,1.7915332]
[1672950014475,8.48115804,1252.9,1252.8,2.98727101]
[1672950014901,5.4881703,1252.9,1252.8,1.19573781]
[1672950015217,5.4881703,1252.9,1252.8,2.98727101]
[1672950015737,8.47967271,1252.9,1252.8,2.98727101]
[1672950016474,8.47967271,1252.9,1252.8,1.7915332]
[1672950017212,8.47967271,1252.9,1252.8,4.18124233]
[1672950019105,5.97967271,1252.9,1252.8,4.18124233]
[1672950020473,5.97967271,1252.9,1252.8,7.38904233]
[1672950021732,5.97967271,1252.9,1252.8,4.9993332]
[1672950022906,5.97967271,1252.9,1252.8,1.7915332]
[1672950023112,5.97967271,1252.9,1252.8,4.9993332]
[1672950024487,5.97967271,1252.9,1252.8,1.7915332]
[1672950024686,5.97967271,1252.9,1252.8,4.9993332]
[1672950026060,5.97967271,1252.9,1252.8,7.38904233]
[1672950027743,2.9881703,1252.9,1252.8,7.01232075]
[1672950030158,2.9881703,1252.9,1252.8,7.59567141]
[1672950030360,2.9881703,1252.9,1252.8,9.98812323]
[1672950030679,2.9881703,1252.9,1252.8,7.59567141]
[1672950030885,2.9881703,1252.9,1252.8,9.988141]
[1672950031097,2.9881703,1252.9,1252.8,7.59567141]
[1672950031625,2.9881703,1252.9,1252.8,7.01540986]
[1672950033836,2.9881703,1252.9,1252.8,9.51540986]
[1672950034047,2.9881703,1252.9,1252.8,12.48846965]
[1672950034779,2.9881703,1252.9,1252.8,9.98846965]
[1672950034979,2.9881703,1252.9,1252.8,7.01540986]
[1672950035191,2.9881703,1252.9,1252.8,9.51540986]
[1672950035621,2.9881703,1252.9,1252.8,12.48846965]
[1672950035936,2.9881703,1252.9,1252.8,9.28066965]
[1672950036140,2.9881703,1252.9,1252.8,12.48846965]
[1672950038669,2.9881703,1252.9,1252.8,9.28066965]
[1672950038874,2.9881703,1252.9,1252.8,12.48846965]
[1672950039510,2.99150241,1253.0,1252.8,12.48846965]
[1672950039822,2.99150241,1253.0,1252.9,6.30750774]
[1672950040138,2.99150241,1253.0,1252.9,4.89279824]
[1672950040665,2.99150241,1253.0,1252.9,6.30750392]
[1672950041288,2.99150241,1253.0,1252.9,2.39279824]
[1672950041498,2.99150241,1253.0,1252.9,6.68735273]
[1672950042240,2.99150241,1253.0,1252.9,8.10059824]
[1672950042665,2.99150241,1253.0,1252.9,5.60059824]
[1672950044029,2.99150241,1253.0,1252.9,7.3947775]
[1672950044442,2.99150241,1253.0,1252.9,5.00197926]
[1672950044877,2.99150241,1253.0,1252.9,1.79417926]
[1672950045192,2.99150241,1253.0,1252.9,5.00197926]
[1672950047608,2.99150241,1253.0,1252.9,7.50197926]
[1672950048137,2.99150241,1253.0,1252.9,5.00197926]
[1672950048978,2.99150241,1253.0,1252.9,7.3947775]
[1672950049291,2.99150241,1253.0,1252.9,5.00197926]
[1672950049703,2.99150241,1253.0,1252.9,7.3947775]
[1672950051393,2.99150241,1253.0,1252.9,5.00197926]
[1672950051604,2.99150241,1253.0,1252.9,7.3947775]
[1672950053069,2.99150241,1253.0,1252.9,5.00197926]
[1672950053589,2.99150241,1253.0,1252.9,1.79417926]
[1672950053798,2.99150241,1253.0,1252.9,5.00197926]
[1672950057594,2.99150241,1253.0,1252.9,1.79417926]
[1672950058020,2.99150241,1253.0,1252.9,5.00197926]
[1672950059173,2.99150241,1253.0,1252.9,1.79417926]
[1672950059390,2.99150241,1253.0,1252.9,5.00197926]
[1672950060220,2.99150241,1253.0,1252.9,7.3947775]
[1672950062437,2.99150241,1253.0,1252.9,5.60059824]
[1672950063278,2.99150241,1253.0,1252.9,7.39551245]
[1672950063800,2.99150241,1253.0,1252.9,5.60059824]
[1672950064746,2.99150241,1253.0,1252.9,5.00301223]
[1672950064952,2.99150241,1253.0,1252.9,7.39581047]
[1672950065371,2.99150241,1253.0,1252.9,5.00301223]
[1672950065582,2.99150241,1253.0,1252.9,7.39581047]
[1672950065790,2.99150241,1253.0,1252.9,5.00301223]
[1672950066110,2.99150241,1253.0,1252.9,7.39581047]
[1672950067269,3.58681043,1253.0,1252.9,2.99233264]
[1672950072948,13.47610717,1253.1,1252.9,2.99233264]
[1672950073892,9.29461043,1253.1,1252.9,2.99233264]
[1672950076198,13.47610717,1253.1,1252.9,2.99233264]
[1672950076413,3.58681043,1253.0,1252.9,2.99233264]
[1672950076935,13.47610717,1253.1,1252.9,2.99233264]
[1672950077153,13.47610717,1253.1,1252.9,1.79521223]
[1672950077465,3.58681043,1253.0,1252.9,1.79521223]
[1672950077781,13.47610717,1253.1,1252.9,1.79521223]
[1672950078196,3.58681043,1253.0,1252.9,1.7923452]
[1672950081353,13.47610717,1253.1,1252.9,1.7923452]
[1672950083875,3.58681043,1253.0,1252.9,1.7923452]
[1672950085974,13.47610717,1253.1,1252.9,1.7923452]
[1672950088392,3.58681043,1253.0,1252.9,1.7923452]
[1672950098055,13.47610717,1253.1,1252.9,2.98946561]
[1672950098690,10.26830717,1253.1,1252.9,2.98946561]
[1672950098904,6.08681043,1253.1,1252.9,2.98946561]
[1672950100582,10.26830717,1253.1,1252.9,2.98946561]
[1672950101532,10.26830717,1253.1,1252.9,1.7923452]
[1672950101742,3.58681043,1253.0,1252.9,1.7923452]
[1672950104268,3.58681043,1253.0,1252.9,2.98946561]
[1672950105526,3.58681043,1253.0,1252.9,1.7923452]
[1672950106788,3.58681043,1253.0,1252.9,2.98946561]
[1672950107416,3.58681043,1253.0,1252.9,1.7923452]
[1672950107624,4.18149674,1253.0,1252.9,1.7923452]
[1672950108156,7.38929674,1253.0,1252.9,1.7923452]
[1672950110676,9.88929674,1253.0,1252.9,1.7923452]
[1672950111832,6.68149674,1253.0,1252.9,1.7923452]
[1672950112045,9.88929674,1253.0,1252.9,1.7923452]
[1672950113400,17.86629674,1253.0,1252.7,2.99294375]
[1672950113613,3.58549005,1252.8,1252.7,1.19712041]
[1672950113825,6.08549005,1252.8,1252.6,6.20074375]
[1672950114138,2.5,1252.7,1252.6,6.20074375]
[1672950114665,2.5,1252.7,1252.6,2.99294375]
[1672950115090,2.5,1252.7,1252.6,2.99231654]
[1672950115091,5.48621998,1252.7,1252.6,2.99231654]
[1672950116349,2.5,1252.7,1252.6,1.1964932]
[1672950116767,5.48621617,1252.7,1252.6,2.99231654]
[1672950116979,5.48621617,1252.7,1252.6,1.79582334]
[1672950117185,5.48621617,1252.7,1252.6,2.99200518]
[1672950117606,5.48621617,1252.7,1252.6,2.99199814]
[1672950117816,5.48621617,1252.7,1252.6,1.79582334]
[1672950118451,7.87473464,1252.7,1252.6,1.79582334]
[1672950121923,5.37473464,1252.7,1252.6,1.79582334]
[1672950122134,2.38851847,1252.7,1252.6,2.39279824]
[1672950122345,2.38851847,1252.7,1252.6,4.89279824]
[1672950122757,2.38851847,1252.7,1252.6,6.30778789]
[1672950125707,2.38851847,1252.7,1252.6,4.89279824]
[1672950126020,2.38851847,1252.7,1252.6,6.68673219]
[1672950126549,2.38851847,1252.7,1252.6,4.18673219]
[1672950126862,5.37473464,1252.7,1252.6,1.79393395]
[1672950127284,5.37473464,1252.7,1252.6,4.29393395]
[1672950127602,5.37473464,1252.7,1252.6,1.79393395]
[1672950128446,5.37473464,1252.7,1252.6,5.00173395]
[1672950129278,5.37473464,1252.7,1252.6,6.19760927]
[1672950129498,2.98621617,1252.7,1252.6,6.19760927]
[1672950129701,2.98621617,1252.7,1252.6,4.40367532]
[1672950130642,9.29329005,1252.8,1252.5,2.98980927]
[1672950130854,2.98499018,1252.6,1252.5,2.98980927]
[1672950131168,5.37204971,1252.6,1252.5,3.69587532]
[1672950131372,2.98499018,1252.6,1252.5,1.19587532]
[1672950131585,5.37175631,1252.6,1252.5,2.98980927]
[1672950133275,2.38676613,1252.6,1252.5,1.19587532]
[1672950133588,4.88676613,1252.6,1252.5,1.19587532]
[1672950134008,4.88676613,1252.6,1252.5,5.48980927]
[1672950134219,4.88676613,1252.6,1252.5,2.98980927]
[1672950136534,2.38676613,1252.6,1252.5,5.48980927]
[1672950136744,2.38676613,1252.6,1252.5,2.98980927]
[1672950136952,2.38676613,1252.6,1252.5,5.48980927]
[1672950137161,2.38676613,1252.6,1252.5,2.98980927]
[1672950137478,2.38676613,1252.6,1252.5,5.48980927]
[1672950137681,2.38676613,1252.6,1252.5,2.98980927]
[1672950138003,2.38676613,1252.6,1252.5,6.19760927]
[1672950138205,2.38676613,1252.6,1252.5,8.69760927]
[1672950138420,2.38676613,1252.6,1252.5,6.19760927]
[1672950138634,2.38676613,1252.6,1252.5,5.00173395]
[1672950138849,5.48499018,1252.6,1252.5,4.40303751]
[1672950139052,4.88602179,1252.6,1252.5,4.40303751]
[1672950139474,4.88602179,1252.6,1252.5,6.19697146]
[1672950140634,4.88602179,1252.6,1252.5,4.40303751]
[1672950141894,4.88602179,1252.6,1252.5,6.19697146]
[1672950142105,4.88602179,1252.6,1252.5,4.40303751]
[1672950143780,4.88602179,1252.6,1252.5,6.19697146]
[1672950145256,7.87101197,1252.6,1252.5,4.40303751]
[1672950145466,5.48499018,1252.6,1252.5,4.40303751]
[1672950145779,7.87026977,1252.6,1252.5,4.40303751]
[1672950146617,4.88527959,1252.6,1252.5,6.19697146]
[1672950146820,2.38527959,1252.6,1252.5,6.19697146]
[1672950147456,2.38527959,1252.6,1252.5,5.00173395]
[1672950147772,2.38527959,1252.6,1252.5,6.19736759]
[1672950147982,2.38527959,1252.6,1252.5,7.50173395]
[1672950148197,2.38527959,1252.6,1252.5,9.89453219]
[1672950148511,2.38527959,1252.6,1252.5,7.50173395]
[1672950148721,2.38527959,1252.6,1252.5,9.89453219]
[1672950149139,2.38527959,1252.6,1252.5,9.89409508]
[1672950149344,2.38527959,1252.6,1252.5,9.8940898]
[1672950149559,2.38527959,1252.6,1252.5,9.89419138]
[1672950149981,2.38527959,1252.6,1252.5,8.10059824]
[1672950150191,5.37026977,1252.7,1252.6,2.5]
[1672950150402,2.38527959,1252.7,1252.6,5.48922848]
[1672950150825,5.37026977,1252.7,1252.6,5.48934068]
[1672950151563,5.37026977,1252.7,1252.6,4.29353709]
[1672950151775,5.37026977,1252.7,1252.6,5.48938178]
[1672950151977,5.37026977,1252.7,1252.6,2.98938178]
[1672950152711,2.98499018,1252.7,1252.6,5.00133709]
[1672950153447,2.98499018,1252.7,1252.6,6.19738361]
[1672950155980,5.3725424,1252.7,1252.6,5.00133709]
[1672950159656,5.37233073,1252.7,1252.6,5.00133709]
[1672950159859,2.98499018,1252.7,1252.6,6.19735644]
[1672950161438,2.98499018,1252.7,1252.6,2.98955644]
[1672950161755,2.98499018,1252.7,1252.6,1.19601935]
[1672950161966,6.08549005,1252.8,1252.6,1.19601935]
[1672950162169,2.98329339,1252.7,1252.6,1.19601935]
[1672950162806,9.29329005,1252.8,1252.6,1.19601935]
[1672950171000,13.47478679,1252.8,1252.6,1.19601935]
[1672950171529,9.29329005,1252.8,1252.6,1.19601935]
[1672950172897,2.98517978,1252.7,1252.6,2.98955644]
[1672950174679,6.08549005,1252.8,1252.6,2.98955644]
[1672950174997,2.9854725,1252.7,1252.6,2.98955644]
[1672950175838,2.9854725,1252.7,1252.6,1.79353709]
[1672950176362,2.9854725,1252.7,1252.6,5.00133709]
[1672950176683,2.9854725,1252.7,1252.6,1.79353709]
[1672950176996,2.9854725,1252.7,1252.6,5.00133709]
[1672950177621,2.38864326,1252.7,1252.6,9.51559594]
[1672950177830,2.38864326,1252.7,1252.6,9.51562151]
[1672950178251,2.38107263,1252.7,1252.6,9.51562151]
[1672950180569,2.38107263,1252.7,1252.6,8.10059824]
[1672950180782,2.38107263,1252.7,1252.6,9.89512892]
[1672950181199,5.36654513,1252.7,1252.6,9.89512892]
[1672950181721,5.36654513,1252.7,1252.6,7.39512892]
[1672950182250,2.38107263,1252.7,1252.6,7.39512892]
[1672950182460,5.36654513,1252.7,1252.6,7.39512892]
[1672950183303,5.36654513,1252.7,1252.6,5.00233068]
[1672950183621,5.36654513,1252.7,1252.6,7.39512892]
[1672950184879,2.9854725,1252.7,1252.6,5.00233068]
[1672950185091,2.9854725,1252.7,1252.6,6.19877189]
[1672950187406,6.08549005,1252.8,1252.6,6.19877189]
[1672950187828,2.98621045,1252.7,1252.6,6.19877189]
[1672950188980,2.98621045,1252.7,1252.6,2.99097189]
[1672950189920,6.08549005,1252.8,1252.6,1.19644121]
[1672950191193,10.26698679,1252.8,1252.6,1.19644121]
[1672950192235,3.58549005,1252.7,1252.6,1.19644121]
[1672950192446,10.26698679,1252.8,1252.5,6.19877189]
[1672950192655,2.9864281,1252.6,1252.5,6.19877189]
[1672950193081,2.9864281,1252.6,1252.5,5.00233068]
[1672950193397,2.9864281,1252.6,1252.5,1.79453068]
[1672950196443,2.9864281,1252.6,1252.5,2.9909794]
[1672950198556,2.9864281,1252.6,1252.5,1.79453068]
[1672950202022,2.9864281,1252.6,1252.5,4.29453068]
[1672950202232,2.9864281,1252.6,1252.5,6.68732892]
[1672950202443,2.9864281,1252.6,1252.5,4.29453068]
[1672950202967,2.9864281,1252.7,1252.5,4.18732892]
[1672950203178,2.5,1252.6,1252.5,4.18732892]
[1672950204012,2.5,1252.6,1252.5,7.39512892]
[1672950204544,2.9864281,1252.6,1252.5,9.89512892]
[1672950204748,2.9864281,1252.7,1252.5,10.09595386]
[1672950204959,5.4864281,1252.8,1252.6,4.89265439]
[1672950205171,5.4864281,1252.8,1252.7,7.50224731]
[1672950205587,2.9864281,1252.8,1252.7,7.50224731]
[1672950206115,5.4864281,1252.9,1252.7,9.8949017]
[1672950206331,5.4864281,1252.9,1252.8,2.69619385]
[1672950206751,2.5,1252.9,1252.8,1.19619385]
[1672950207695,2.5,1252.9,1252.7,8.69828463]
[1672950207909,2.98397492,1252.8,1252.7,8.69828463]
[1672950208430,5.37085083,1252.8,1252.7,8.69828463]
[1672950208642,5.37085083,1252.8,1252.7,5.49048463]
[1672950208854,5.37085083,1252.8,1252.7,8.69828463]
[1672950209379,2.38687591,1252.8,1252.7,8.69828463]
[1672950209586,2.38687591,1252.8,1252.7,8.69764076]
[1672950210010,5.37085083,1252.8,1252.7,8.69764076]
[1672950210743,2.38687591,1252.8,1252.7,8.69764076]
[1672950211064,5.37085083,1252.8,1252.7,8.69764076]
[1672950211273,2.38687591,1252.8,1252.7,8.69764076]
[1672950212841,2.38687591,1252.8,1252.7,5.48984076]
[1672950213163,2.38687591,1252.8,1252.7,8.69764076]
[1672950214210,2.38687591,1252.8,1252.7,7.50209078]
[1672950214526,2.38687591,1252.8,1252.7,4.29429078]
[1672950214849,2.38687591,1252.8,1252.7,7.50209078]
[1672950217046,2.38687591,1252.8,1252.7,8.69696162]
[1672950217464,2.38687591,1252.8,1252.7,7.50209078]
[1672950218204,2.38687591,1252.8,1252.7,4.29429078]
[1672950218414,2.38687591,1252.8,1252.7,8.69689063]
[1672950219786,2.38687591,1252.8,1252.7,7.50209078]
[1672950219989,5.37085083,1252.9,1252.7,7.50209078]
[1672950220200,2.38687591,1252.9,1252.8,1.19472915]
[1672950220411,2.38687591,1252.9,1252.8,2.69472915]
[1672950221464,5.37085083,1252.9,1252.8,2.69472915]
[1672950221674,2.38687591,1252.9,1252.8,2.69472915]
[1672950221887,5.37085083,1252.9,1252.8,2.69472915]
[1672950222415,2.98397492,1252.9,1252.8,1.5]
[1672950222725,5.36868807,1252.9,1252.8,1.5]
[1672950223146,2.98397492,1252.9,1252.8,1.5]
[1672950223776,2.98397492,1252.9,1252.8,2.69472915]
[1672950223777,2.38477691,1252.9,1252.8,2.69472915]
[1672950224302,5.36875183,1252.9,1252.7,8.69681993]
[1672950224513,2.5,1252.8,1252.7,8.69681993]
[1672950225454,4.88477691,1252.8,1252.7,8.69681993]
[1672950225670,4.88477691,1252.8,1252.7,4.40252915]
[1672950226094,7.86875183,1252.8,1252.7,3.2078]
[1672950226618,4.88477691,1252.8,1252.7,4.40252915]
[1672950227880,7.86875183,1252.8,1252.7,4.40252915]
[1672950228083,7.86875183,1252.8,1252.7,3.2078]
[1672950228613,4.88477691,1252.8,1252.7,4.40252915]
[1672950228825,7.86875183,1252.8,1252.7,3.2078]
[1672950229043,7.86875183,1252.8,1252.6,8.69681993]
[1672950230294,7.86875183,1252.8,1252.7,2.5]
[1672950230509,4.88477691,1252.8,1252.7,3.69472915]
[1672950232293,5.36875183,1252.8,1252.7,3.69472915]
[1672950232926,2.38477691,1252.8,1252.7,3.69472915]
[1672950235028,5.36875183,1252.8,1252.7,3.69472915]
[1672950236803,5.36875183,1252.8,1252.7,6.90252915]
[1672950237015,2.98397492,1252.8,1252.7,6.90252915]
[1672950239439,2.98397492,1252.8,1252.7,4.40252915]
[1672950242279,2.98397492,1252.8,1252.7,6.19681993]
[1672950242702,2.98397492,1252.8,1252.7,4.40252915]
[1672950243217,6.08549005,1252.9,1252.7,4.40252915]
[1672950243439,2.98541527,1252.8,1252.7,4.40252915]
[1672950244075,6.08549005,1252.9,1252.7,4.40252915]
[1672950244285,6.08549005,1252.9,1252.7,6.19681993]
[1672950245545,6.08549005,1252.9,1252.7,4.40252915]
[1672950245754,6.08549005,1252.9,1252.7,6.19681993]
[1672950247333,6.08549005,1252.9,1252.7,2.98901993]
[1672950247857,6.08549005,1252.9,1252.7,1.19472915]
[1672950248065,6.08549005,1252.9,1252.7,5.48901993]
[1672950248278,6.08549005,1252.9,1252.8,1.19472915]
[1672950248595,6.08549005,1252.9,1252.8,3.69472915]
[1672950248805,6.08549005,1252.9,1252.8,1.19472915]
[1672950249010,6.08549005,1252.9,1252.7,5.48901993]
[1672950249221,2.98644296,1252.8,1252.7,5.48901993]
[1672950249428,6.08549005,1252.9,1252.7,5.48901993]
[1672950252369,6.08549005,1252.9,1252.7,2.98901993]
[1672950257110,6.08549005,1252.9,1252.7,1.19472915]
[1672950257633,3.58549005,1252.8,1252.6,6.19681993]
[1672950257842,2.50675814,1252.7,1252.6,6.19681993]
[1672950258052,5.49442551,1252.7,1252.6,6.19681993]
[1672950258893,5.49442551,1252.7,1252.6,5.00209078]
[1672950260258,5.49442551,1252.7,1252.6,6.19870472]
[1672950260470,5.49442551,1252.7,1252.6,2.99093456]
[1672950261625,5.49442551,1252.7,1252.6,1.79429078]
[1672950262260,5.49442551,1252.7,1252.6,2.99084414]
[1672950263096,5.49442551,1252.7,1252.6,2.98328673]
[1672950264462,2.50675814,1252.7,1252.6,2.98328673]
[1672950264673,2.50675814,1252.7,1252.6,1.19655336]
[1672950266680,5.49369018,1252.7,1252.6,1.19655336]
[1672950266886,2.50675814,1252.7,1252.6,1.19655336]
[1672950267094,5.49371071,1252.7,1252.6,1.19655336]
[1672950268254,2.99371071,1252.7,1252.6,1.19655336]
[1672950268464,2.99371071,1252.7,1252.5,8.10045439]
[1672950268781,2.98846346,1252.7,1252.5,8.10045439]
[1672950269516,2.98846346,1252.7,1252.5,4.89265439]
[1672950269727,2.98846346,1252.7,1252.6,3.2078]
[1672950269937,2.98846346,1252.7,1252.6,4.40424075]
[1672950270674,2.98846346,1252.7,1252.6,3.2078]
[1672950278454,2.98846346,1252.7,1252.6,5.60045439]
[1672950279820,2.98846346,1252.7,1252.6,3.2078]
[1672950281710,2.98846346,1252.7,1252.5,7.86571418]
[1672950281923,2.98846346,1252.7,1252.6,3.2078]
[1672950282445,5.48846346,1252.7,1252.6,4.40454363]
[1672950283603,5.48846346,1252.7,1252.6,1.19674363]
[1672950284337,2.50151089,1252.7,1252.6,1.19674363]
[1672950287802,2.50151089,1252.7,1252.6,3.69674363]
[1672950288017,0.00151089,1252.7,1252.6,3.69674363]
[1672950290753,0.00151089,1252.7,1252.6,2.5]
[1672950290960,2.9889392,1252.7,1252.6,2.5]
[1672950291598,2.9889392,1252.7,1252.6,4.89265439]
[1672950292539,2.9889392,1252.7,1252.6,8.10045439]
[1672950293173,2.9889392,1252.7,1252.6,5.60045439]
[1672950294017,2.9889392,1252.7,1252.6,3.2078]
[1672950294215,2.9889392,1252.7,1252.6,5.60045439]
[1672950295170,2.9889392,1252.7,1252.6,2.39265439]
[1672950295380,2.9889392,1252.7,1252.6,3.2078]
[1672950295698,2.9889392,1252.7,1252.6,5.7078]
[1672950296428,2.9889392,1252.7,1252.6,8.10045439]
[1672950297903,2.9889392,1252.7,1252.6,5.7078]
[1672950298323,0.00151089,1252.7,1252.6,3.2078]
[1672950298528,0.00151089,1252.7,1252.6,5.7078]
[1672950300948,0.00151089,1252.7,1252.6,6.90497658]
[1672950301153,0.00151089,1252.7,1252.6,3.69717658]
[1672950302532,3.58700094,1252.7,1252.6,3.69717658]
[1672950302841,6.08700094,1252.7,1252.6,1.19717658]
[1672950303787,2.50151089,1252.7,1252.6,1.19717658]
[1672950304525,6.08700094,1252.7,1252.6,1.19717658]
[1672950307154,2.50151089,1252.7,1252.6,1.19717658]
[1672950309675,2.98759378,1252.7,1252.6,1.19717658]
[1672950309987,2.98759378,1252.7,1252.5,8.10045439]
[1672950310515,2.98759378,1252.7,1252.6,1.19660429]
[1672950310721,2.98759378,1252.7,1252.5,8.10045439]
[1672950311150,2.98759378,1252.7,1252.6,3.2078]
[1672950313256,2.98759378,1252.7,1252.6,4.40445841]
[1672950313570,2.98759378,1252.7,1252.6,3.2078]
[1672950313885,2.98759378,1252.7,1252.6,4.40446295]
[1672950314304,2.98762018,1252.7,1252.6,4.40446295]
[1672950314619,2.50151089,1252.7,1252.6,1.19666295]
[1672950315665,0.00151089,1252.7,1252.6,1.19666295]
[1672950322717,2.50151089,1252.7,1252.6,1.19666295]
[1672950324299,6.08700094,1252.7,1252.6,1.19666295]
[1672950324928,2.50151089,1252.7,1252.6,1.19666295]
[1672950327552,6.08700094,1252.7,1252.6,1.19666295]
[1672950327767,2.50151089,1252.7,1252.6,1.19666295]
[1672950330502,6.08700094,1252.7,1252.6,1.19666295]
[1672950332924,6.08549005,1252.7,1252.6,1.19666295]
[1672950334397,2.5,1252.7,1252.6,1.19666295]
[1672950337017,6.08549005,1252.7,1252.6,1.19666295]
[1672950338383,2.5,1252.7,1252.6,2.99198135]
[1672950338811,2.5,1252.7,1252.6,1.19666295]
[1672950339013,6.08549005,1252.7,1252.6,1.19666295]
[1672950340280,3.58549005,1252.7,1252.6,1.19666295]
[1672950340592,2.5,1252.7,1252.6,2.99198135]
[1672950343429,6.08549005,1252.7,1252.6,1.19666295]
[1672950346377,2.5,1252.7,1252.6,2.99198135]
[1672950347637,2.5,1252.7,1252.6,1.19666295]
[1672950347848,6.08549005,1252.7,1252.6,1.19666295]
[1672950348583,6.08549005,1252.7,1252.6,1.19362367]
[1672950349110,2.5,1252.7,1252.6,2.98894207]
[1672950350254,2.5,1252.7,1252.6,1.19362367]
[1672950350791,6.08549005,1252.7,1252.6,1.19362367]
[1672950351740,6.08549005,1252.7,1252.6,2.98894207]
[1672950351943,6.08549005,1252.7,1252.6,1.19362367]
[1672950352579,6.08549005,1252.7,1252.6,2.98894207]
[1672950352988,3.58549005,1252.7,1252.6,2.98894207]
[1672950353203,10.26698679,1252.8,1252.6,2.98894207]
[1672950354047,3.58549005,1252.7,1252.6,2.98894207]
[1672950354572,3.58549005,1252.7,1252.6,1.19362367]
[1672950356783,3.58549005,1252.7,1252.6,2.98894207]
[1672950357095,3.58549005,1252.7,1252.6,1.19362367]
[1672950358256,3.58549005,1252.7,1252.6,2.98894207]
[1672950360255,3.58549005,1252.7,1252.6,1.19362367]
[1672950361928,3.58549005,1252.7,1252.5,5.0031184]
[1672950362246,6.08549005,1252.6,1252.5,5.0031184]
[1672950362463,2.5,1252.6,1252.5,5.0031184]
[1672950362778,2.5,1252.6,1252.4,1.7953184]
[1672950363084,2.5,1252.6,1252.3,9.89577279]
[1672950363299,2.98514071,1252.4,1252.3,9.89577279]
[1672950363518,2.98514071,1252.4,1252.3,7.39577279]
[1672950364034,2.98514071,1252.4,1252.3,9.89577279]
[1672950364249,2.98514071,1252.4,1252.3,8.10045439]
[1672950364876,2.98514071,1252.5,1252.3,8.10045439]
[1672950365083,2.5,1252.4,1252.3,7.39534779]
[1672950365400,5.48514071,1252.4,1252.3,7.39534779]
[1672950366025,2.5,1252.4,1252.3,5.60045439]
[1672950366662,2.5,1252.4,1252.3,7.39534132]
[1672950366983,2.5,1252.4,1252.3,5.00268693]
[1672950367814,5.48514071,1252.4,1252.3,5.00268693]
[1672950368236,2.5,1252.4,1252.3,5.00268693]
[1672950368443,2.5,1252.4,1252.3,1.79488693]
[1672950368756,2.98514071,1252.5,1252.3,7.50268693]
[1672950369187,2.98514071,1252.5,1252.4,1.79488693]
[1672950369390,2.98514071,1252.5,1252.4,4.29488693]
[1672950370126,5.48514071,1252.6,1252.4,4.29488693]
[1672950370342,5.48514071,1252.6,1252.5,3.2078]
[1672950371914,2.5,1252.6,1252.5,3.2078]
[1672950372544,2.5,1252.6,1252.4,7.50268693]
[1672950372752,5.48330733,1252.6,1252.4,7.50268693]
[1672950375803,2.98330733,1252.6,1252.4,7.50268693]
[1672950376122,2.98330733,1252.6,1252.5,4.29488693]
[1672950376322,2.98330733,1252.6,1252.5,2.5]
[1672950376746,2.98330733,1252.6,1252.5,4.29488693]
[1672950377273,2.98330733,1252.6,1252.5,2.5]
[1672950378215,2.98330733,1252.6,1252.5,5.7078]
[1672950378428,2.5,1252.7,1252.5,5.7078]
[1672950378747,2.98333069,1252.6,1252.5,5.7078]
[1672950378957,2.98343482,1252.6,1252.5,5.7078]
[1672950379383,2.98343482,1252.6,1252.5,3.2078]
[1672950379594,6.08549005,1252.7,1252.4,4.29488693]
[1672950379806,2.98343463,1252.5,1252.4,4.29488693]
[1672950380956,2.98343463,1252.5,1252.4,1.79488693]
[1672950381164,3.2078,1252.6,1252.3,7.50268693]
[1672950381374,2.983378,1252.4,1252.3,7.50268693]
[1672950381585,5.483378,1252.5,1252.3,7.50268693]
[1672950382010,5.483378,1252.5,1252.3,9.89534132]
[1672950382854,5.483378,1252.5,1252.4,1.79488693]
[1672950383067,5.483378,1252.5,1252.4,4.29488693]
[1672950385796,2.983378,1252.5,1252.4,4.29488693]
[1672950388109,2.983378,1252.5,1252.4,7.50268693]
[1672950388948,2.983378,1252.5,1252.4,4.29488693]
[1672950389160,2.983378,1252.5,1252.4,7.50268693]
[1672950391367,2.983378,1252.5,1252.4,5.00268693]
[1672950392945,2.98501904,1252.5,1252.4,3.2078]
[1672950393258,5.48501904,1252.5,1252.4,3.2078]
[1672950393472,5.48501904,1252.5,1252.4,5.00268693]
[1672950395257,5.48501904,1252.5,1252.4,1.79488693]
[1672950395472,5.48501904,1252.5,1252.4,5.00268693]
[1672950402516,5.48501904,1252.5,1252.4,7.39534132]
[1672950402827,2.98501904,1252.5,1252.4,7.39534132]
[1672950403239,2.98501904,1252.5,1252.4,5.00268693]
[1672950403450,5.48501904,1252.5,1252.4,5.00268693]
[1672950406618,5.48501904,1252.5,1252.4,7.39534132]
[1672950406828,5.48501904,1252.5,1252.4,5.60045439]
[1672950407142,5.48501904,1252.5,1252.4,7.39632866]
[1672950408186,5.48501904,1252.5,1252.4,5.00367427]
[1672950408613,2.5,1252.5,1252.4,1.79587427]
[1672950415968,2.98711314,1252.5,1252.4,5.00367427]
[1672950416184,5.48711314,1252.5,1252.4,5.00367427]
[1672950417340,5.48711314,1252.5,1252.4,7.39632866]
[1672950417866,5.48711314,1252.5,1252.4,5.60045439]
[1672950418076,2.98711314,1252.5,1252.4,5.60045439]
[1672950418385,2.98711314,1252.5,1252.4,7.01574667]
[1672950418809,2.98711314,1252.5,1252.4,3.80794667]
[1672950419021,2.98711314,1252.5,1252.4,7.01574667]
[1672950420283,2.98711314,1252.5,1252.4,9.51574667]
[1672950420801,2.98711314,1252.6,1252.5,2.5]
[1672950421012,2.98711314,1252.6,1252.5,4.29577946]
[1672950421223,2.98711314,1252.6,1252.5,6.68843385]
[1672950421435,2.98711314,1252.6,1252.5,6.68839397]
[1672950421645,2.98711314,1252.6,1252.5,6.68838602]